[Event "3rd CNE NED-ch Women Rapid 2017"]
[Site "Amstelveen"]
[Date "2017.12.03"]
[Round "1"]
[White "Haast, Anne"]
[Black "Keetman, Maaike"]
[Result "0-1"]
[ECO "B47"]
[WhiteElo "2332"]
[BlackElo "2203"]
[Annotator "ChessBase"]
[PlyCount "146"]
[EventDate "2017.??.??"]
[EventType "tourn"]
[EventCountry "NED"]
[SourceTitle "playchess.com"]
[Source "ChessBase"]
[SourceQuality "1"]
[TimeControl "900+10"]

1. e4 {[%emt 0:00:00]} c5 {[%emt 0:00:01]} 2. Nf3 {[%emt 0:00:00]} e6 {[%emt 0:00:02]} 3. d4 {[%emt 0:00:00]} cxd4 {[%emt 0:00:02]} 4. Nxd4 {[%emt 0:00:00]} Nc6 {[%emt 0:00:01]} 5. Nc3 {[%emt 0:00:18]} Qc7 {[%emt 0:00:02]} 6. Qd3 {[%emt 0:00:07]} Nf6 {[%emt 0:00:23]} 7. Nxc6 {[%emt 0:00:07]} dxc6 {[%emt 0:00:34]} 8. Qg3 {[%emt 0:00:08]} Qxg3 {[%emt 0:00:14]} 9. hxg3 {[%emt 0:00:02]} e5 {[%emt 0:00:08]} 10. f3 {[%emt 0:00:06]} Be6 {[%emt 0:00:29]} 11. Be3 {[%emt 0:00:10]} Nd7 {[%emt 0:01:54]} 12. Kf2 {[%emt 0:03:01]} Bc5 {[%emt 0:00:33]} 13. Be2 {[%emt 0:00:05]} O-O-O {[%emt 0:01:04]} 14. g4 {[%emt 0:00:18]} f6 {[%emt 0:02:24]} 15. Nd1 {[%emt 0:01:08]} Bf7 {[%emt 0:02:47]} 16. Bxc5 {[%emt 0:03:27]} Nxc5 {[%emt 0:00:01]} 17. Ne3 {[%emt 0:00:02]} Bg6 {[%emt 0:04:34]} 18. g3 {[%emt 0:02:22]} Rd2 {[%emt 0:00:31]} 19. Rad1 {[%emt 0:00:38]} Rhd8 {[%emt 0:00:01]} 20. Rxd2 {[%emt 0:00:24]} Rxd2 {[%emt 0:00:01]} 21. Ke1 {[%emt 0:00:06]} Rd4 {[%emt 0:00:27]} 22. b3 {[%emt 0:01:15]} Kc7 {[%emt 0:00:19]} 23. Kf2 {[%emt 0:01:17]} Rd2 {[%emt 0:00:33]} 24. Rc1 {[%emt 0:00:01]} a5 {[%emt 0:00:19]} 25. Nc4 {[%emt 0:00:14]} Rd8 {[%emt 0:00:20]} 26. Nxa5 {[%emt 0:00:16]} Ra8 {[%emt 0:00:10]} 27. b4 {[%emt 0:00:29]} Ne6 {[%emt 0:00:01]} 28. a3 {[%emt 0:00:11]} Bf7 {[%emt 0:00:35]} 29. Ra1 {[%emt 0:00:36]} Nd4 {[%emt 0:00:16]} 30. Bd1 {[%emt 0:00:16]} c5 {[%emt 0:01:02]} 31. c3 {[%emt 0:01:19]} Nb5 {[%emt 0:00:03]} 32. c4 {[%emt 0:00:41]} cxb4 {[%emt 0:00:08]} 33. cxb5 {[%emt 0:00:23]} Rxa5 {[%emt 0:00:02]} 34. Rc1+ {[%emt 0:00:01]} Kb6 {[%emt 0:00:03]} 35. axb4 {[%emt 0:00:01]} Rxb5 {[%emt 0:00:02]} 36. Rb1 {[%emt 0:00:04]} Kc7 {[%emt 0:00:08]} 37. Be2 {[%emt 0:00:03]} Rb6 {[%emt 0:00:02]} 38. b5 {[%emt 0:00:00]} Rd6 {[%emt 0:00:07]} 39. Rc1+ {[%emt 0:00:00]} Kd7 {[%emt 0:00:16]} 40. Ke3 Bb3 {[%emt 0:00:17]} 41. f4 {[%emt 0:00:12]} Be6 {[%emt 0:00:43]} 42. Rc5 {[%emt 0:00:08]} b6 {[%emt 0:00:06]} 43. Rc1 {[%emt 0:00:04]} Rd4 {[%emt 0:00:17]} 44. Ra1 {[%emt 0:00:14]} Ke7 {[%emt 0:00:06]} 45. Ra7+ {[%emt 0:00:11]} Rd7 {[%emt 0:00:01]} 46. Ra8 {[%emt 0:00:09]} Rd8 {[%emt 0:00:02]} 47. Ra6 {[%emt 0:00:05]} Rd6 {[%emt 0:00:02]} 48. g5 {[%emt 0:00:11]} fxg5 {[%emt 0:00:06]} 49. fxe5 {[%emt 0:00:03]} Rd7 {[%emt 0:00:30]} 50. Rxb6 {[%emt 0:00:02]} Bb3 {[%emt 0:00:13]} 51. Bg4 {[%emt 0:00:13]} Rd8 {[%emt 0:00:11]} 52. Rb7+ {[%emt 0:00:05]} Kf8 {[%emt 0:00:02]} 53. b6 {[%emt 0:00:20]} Bc4 {[%emt 0:00:14]} 54. Rd7 {[%emt 0:00:11]} Rb8 {[%emt 0:00:19]} 55. Kd4 {[%emt 0:00:22]} Bb5 {[%emt 0:00:08]} 56. Rd6 {[%emt 0:00:30]} Ke7 {[%emt 0:00:07]} 57. Kc5 {[%emt 0:00:05]} Be8 {[%emt 0:00:01]} 58. Rd1 {[%emt 0:00:18]} h5 {[%emt 0:00:04]} 59. Be2 {[%emt 0:00:12]} Rc8+ {[%emt 0:00:14]} 60. Kb4 {[%emt 0:00:01]} Rb8 {[%emt 0:00:16]} 61. Ka5 {[%emt 0:00:08]} h4 {[%emt 0:00:06]} 62. gxh4 {[%emt 0:00:02]} gxh4 {[%emt 0:00:01]} 63. Ba6 {[%emt 0:00:04]} Bc6 {[%emt 0:00:03]} 64. Rh1 {[%emt 0:00:13]} g5 65. Rg1 Rg8 {[%emt 0:00:32]} 66. b7 {[%emt 0:00:20]} h3 {[%emt 0:00:09]} 67. Kb6 {[%emt 0:00:03]} Bxe4 {[%emt 0:00:03]} 68. Bc4 {[%emt 0:00:14]} h2 {[%emt 0:00:17]} 69. Rf1 {[%emt 0:00:09]} Rb8 {[%emt 0:00:31]} 70. e6 {[%emt 0:01:46]} Rxb7+ {[%emt 0:00:10]} 71. Kc5 {[%emt 0:00:00]} Rc7+ {[%emt 0:00:06]} 72. Kd4 {[%emt 0:00:01]} Rxc4+ {[%emt 0:00:01]} 73. Kxc4 {[%emt 0:00:01]} h1=Q 0-1

[Event "3rd CNE NED-ch Women Rapid 2017"]
[Site "Amstelveen"]
[Date "2017.12.03"]
[Round "1"]
[White "De Jong-Muhren, Bianca"]
[Black "De Mie, Mariska"]
[Result "0-1"]
[ECO "B43"]
[WhiteElo "2262"]
[BlackElo "2242"]
[Annotator "NA"]
[PlyCount "74"]
[EventDate "2017.??.??"]
[EventType "tourn"]
[EventCountry "NED"]
[SourceTitle "playchess.com"]
[Source "ChessBase"]
[SourceQuality "1"]
[TimeControl "900+10"]

1. e4 {[%emt 0:00:00]} c5 {[%emt 0:00:01]} 2. Nf3 {[%emt 0:00:00]} e6 {[%emt 0:00:01]} 3. d4 {[%emt 0:00:00]} cxd4 {[%emt 0:00:02]} 4. Nxd4 {[%emt 0:00:00]} a6 {[%emt 0:00:01]} 5. Nc3 {[%emt 0:00:05]} b5 {[%emt 0:00:20]} 6. Bd3 {[%emt 0:00:06] LiveBook: 2542 Games} Bb7 {[%emt 0:00:07]} 7. Qe2 {[%emt 0:00:40]} b4 {[%emt 0:01:58]} 8. Nd1 {[%emt 0:00:07]} Bc5 {[%emt 0:01:32]} 9. Nb3 {[%emt 0:00:31]} Be7 {[%emt 0:00:29]} 10. O-O {[%emt 0:00:10]} Nc6 {[%emt 0:00:38]} 11. Bf4 {[%emt 0:02:06]} Nf6 {[%emt 0:01:03]} 12. Rc1 {[%emt 0:01:22]} ({Better is} 12. Ne3 $14) 12... a5 {[%emt 0:00:11]} 13. c3 {[%emt 0:00:52]} e5 {[%emt 0:01:29]} 14. Bd2 {[%emt 0:02:21]} a4 {[%emt 0:00:30]} 15. Na1 $11 {[%emt 0:00:03]} bxc3 {[%emt 0:00:45]} 16. Bxc3 {[%emt 0:00:06]} O-O {[%emt 0:00:47]} 17. Nc2 {[%emt 0:02:22]} d5 {[%emt 0:00:20]} 18. exd5 {[%emt 0:00:25]} Nxd5 {[%emt 0:00:59]} 19. Bxe5 {[%emt 0:00:49]} Bg5 {[%emt 0:01:07]} 20. f4 {[%emt 0:02:00]} Nxe5 {[%emt 0:00:32]} 21. Qxe5 {[%emt 0:00:37]} Nxf4 {[%emt 0:00:26]} 22. Rxf4 {[%emt 0:01:56]} Bxf4 {[%emt 0:00:06]} 23. Bxh7+ {[%emt 0:00:08]} Kxh7 {[%emt 0:00:10]} 24. Qxf4 {[%emt 0:00:01]} Rc8 {[%emt 0:00:24]} 25. Nc3 {[%emt 0:00:38]} Qb6+ {[%emt 0:00:19]} 26. Kh1 {[%emt 0:01:10]} Qxb2 {[%emt 0:00:15]} 27. Nxa4 {[%emt 0:00:34]} Qxa2 {[%emt 0:00:45]} 28. Qf5+ {[%emt 0:00:12]} Kg8 {[%emt 0:00:07]} 29. Nc5 {[%emt 0:00:09]} Qa5 {[%emt 0:01:18]} 30. Nd4 {[%emt 0:00:07]} Qd2 {[%emt 0:00:13]} 31. Rg1 {[%emt 0:00:07]} Bxg2+ {[%emt 0:01:26]} 32. Rxg2 {[%emt 0:00:01]} Qxd4 {[%emt 0:00:01]} 33. Nd3 {[%emt 0:00:26]} Rc3 {[%emt 0:00:24]} 34. Rg3 {[%emt 0:00:17]} Rd8 {[%emt 0:00:20]} 35. Rf3 {[%emt 0:00:01]} Qd5 {[%emt 0:00:08]} 36. Qxd5 {[%emt 0:00:18]} Rxd5 {[%emt 0:00:01]} 37. Ne1 {[%emt 0:00:09]} Rc1 {[%emt 0:00:04]} 0-1

[Event "3rd CNE NED-ch Women Rapid 2017"]
[Site "Amstelveen"]
[Date "2017.12.03"]
[Round "1"]
[White "Kazarian, Anna-Maja"]
[Black "Ratsma, Rosa"]
[Result "1-0"]
[ECO "E63"]
[WhiteElo "2162"]
[BlackElo "2295"]
[Annotator "NA"]
[PlyCount "101"]
[EventDate "2017.??.??"]
[EventType "tourn"]
[EventCountry "NED"]
[SourceTitle "playchess.com"]
[Source "ChessBase"]
[SourceQuality "1"]
[TimeControl "900+10"]

1. g3 {[%emt 0:00:00]} Nf6 {[%emt 0:00:04]} 2. Bg2 {[%emt 0:00:00]} g6 {[%emt 0:00:03]} 3. Nf3 {[%emt 0:00:00]} Bg7 {[%emt 0:00:02]} 4. O-O {[%emt 0:00:00]} O-O {[%emt 0:00:03] LiveBook: 4986 Games} 5. d4 {[%emt 0:00:05]} d6 {[%emt 0:00:05]} 6. c4 {[%emt 0:00:09]} Nc6 {[%emt 0:00:04]} 7. Nc3 {[%emt 0:00:05]} a6 {[%emt 0:00:03]} 8. Re1 {[%emt 0:00:23]} Rb8 {[%emt 0:00:32]} 9. d5 {[%emt 0:00:33]} Na5 {[%emt 0:00:14]} 10. Qd3 {[%emt 0:00:08]} c5 {[%emt 0:00:22]} 11. e4 {[%emt 0:01:08] E66: King's Indian: Fianchetto: 6...c5 7 0-0 Nc6 8 d5} b5 {[%emt 0:00:55]} 12. cxb5 {[%emt 0:00:12]} axb5 {[%emt 0:00:03]} 13. Bg5 {[%emt 0:01:48]} (13. e5 Ng4 14. exd6 exd6 15. h3 Nf6 16. Nd2 Bf5 17. Qf1 c4 18. Nde4 Nxe4 19. Nxe4 Bxe4 20. Rxe4 Nb7 21. Qd1 Nc5 22. Re2 Ra8 23. a3 {½-½ (23) Plat,V (2465)-Vesselovsky,S (2339) Czech Republic 2015}) 13... h6 {[%emt 0:01:30]} 14. Bxf6 $146 {[%emt 0:00:20]} ({Predecessor:} 14. Be3 Ng4 15. Bc1 b4 16. Nd1 Qb6 17. h3 Ba6 18. Qc2 Nf6 {0-1 (40) Majcenovic,M (1967)-Havas,J (2104) Slovenia 2013}) 14... exf6 {[%emt 0:01:06]} 15. Rac1 {[%emt 0:02:34]} b4 {[%emt 0:01:31]} 16. Nd1 {[%emt 0:00:19]} Re8 {[%emt 0:00:56]} 17. Ne3 {[%emt 0:00:18]} Qb6 {[%emt 0:00:37]} 18. b3 {[%emt 0:00:28]} Ba6 {[%emt 0:00:43]} 19. Qc2 {[%emt 0:00:01]} Bb5 {[%emt 0:01:17]} 20. Nd2 {[%emt 0:00:04]} Qa6 {[%emt 0:00:11]} 21. Bf1 {[%emt 0:01:04]} Bxf1 {[%emt 0:00:29]} 22. Rxf1 {[%emt 0:00:01]} Ra8 {[%emt 0:00:19]} 23. Nec4 {[%emt 0:01:40]} Nxc4 {[%emt 0:00:20]} 24. Nxc4 {[%emt 0:00:06]} Re7 {[%emt 0:01:04]} 25. f4 {[%emt 0:01:39]} Rae8 {[%emt 0:00:35]} 26. Rfe1 {[%emt 0:00:10]} f5 {[%emt 0:01:24]} 27. e5 {[%emt 0:00:09]} dxe5 {[%emt 0:00:03]} 28. d6 {[%emt 0:00:33]} Rd7 {[%emt 0:00:11]} 29. fxe5 {[%emt 0:00:05]} Kh7 {[%emt 0:00:57]} 30. Qg2 {[%emt 0:00:31]} Re6 {[%emt 0:00:55]} 31. Qd5 {[%emt 0:00:18]} Qxa2 {[%emt 0:00:24]} 32. Nb6 {[%emt 0:01:08]} (32. Qxc5 $16 Qa7 33. Qxa7 Rxa7 34. Kf2) 32... Rd8 {[%emt 0:00:22]} 33. Na4 {[%emt 0:00:50]} c4 {[%emt 0:00:55]} (33... Bxe5 $11 34. Rxe5 Rdxd6) 34. Nc5 $16 {[%emt 0:00:21]} ({Ein No Go ist} 34. Qxc4 $6 Rxe5 35. Rxe5 Bxe5 $11) 34... Qa5 {[%emt 0:01:21]} 35. bxc4 {[%emt 0:00:20]} Ree8 {[%emt 0:00:32]} 36. d7 {[%emt 0:00:53]} Rf8 {[%emt 0:00:19]} 37. Ra1 {[%emt 0:00:02]} Qc7 {[%emt 0:00:08]} 38. Ra6 {[%emt 0:00:15]} b3 {[%emt 0:00:09]} 39. Qd6 {[%emt 0:00:52]} Qxd6 {[%emt 0:00:22]} 40. Rxd6 {[%emt 0:00:01]} Rb8 {[%emt 0:00:11]} 41. Nxb3 {[%emt 0:00:02]} Rfd8 {[%emt 0:00:10]} 42. Na5 {[%emt 0:00:45]} Bf8 {[%emt 0:00:10]} 43. Nc6 {[%emt 0:00:01]} Bxd6 {[%emt 0:00:09]} 44. exd6 {[%emt 0:00:05]} Rxd7 {[%emt 0:00:16]} 45. Nxb8 {[%emt 0:00:03]} Rxd6 {[%emt 0:00:01]} 46. c5 {[%emt 0:00:19]} Rd8 {[%emt 0:00:05]} 47. Na6 {[%emt 0:00:06]} Rc8 {[%emt 0:00:11]} 48. Rc1 {[%emt 0:00:04]} Kg7 {[%emt 0:00:06]} 49. c6 {[%emt 0:00:03]} Kf6 {[%emt 0:00:05]} 50. c7 {[%emt 0:00:01]} Ke7 {[%emt 0:00:05]} 51. Rb1 {[%emt 0:00:36]} 1-0

[Event "3rd CNE NED-ch Women Rapid 2017"]
[Site "Amstelveen"]
[Date "2017.12.03"]
[Round "2"]
[White "Lanchava, Tea"]
[Black "De Jong-Muhren, Bianca"]
[Result "0-1"]
[ECO "A22"]
[WhiteElo "2297"]
[BlackElo "2262"]
[Annotator "NA"]
[PlyCount "74"]
[EventDate "2017.??.??"]
[EventType "tourn"]
[EventCountry "NED"]
[SourceTitle "playchess.com"]
[Source "ChessBase"]
[SourceQuality "1"]
[TimeControl "900+10"]

1. c4 {[%emt 0:00:00]} e5 {[%emt 0:00:01]} 2. Nc3 {[%emt 0:00:00]} Nf6 {[%emt 0:00:01]} 3. g3 {[%emt 0:00:00]} Nc6 {[%emt 0:00:02]} 4. Bg2 {[%emt 0:00:04]} Bc5 {[%emt 0:00:03]} 5. Nf3 {[%emt 0:00:03]} d6 {[%emt 0:00:05]} 6. O-O {[%emt 0:00:04]} O-O {[%emt 0:00:03]} 7. d3 {[%emt 0:00:01]} h6 {[%emt 0:00:11]} 8. e3 {[%emt 0:00:02]} a6 {[%emt 0:00:18] A29: English Opening: Four Knights Variation with 4 g3} 9. d4 {[%emt 0:00:05] LiveBook: 3 Games} exd4 {[%emt 0:00:07]} 10. exd4 {[%emt 0:00:02]} Ba7 {[%emt 0:00:08]} 11. h3 {[%emt 0:00:03]} Re8 {[%emt 0:00:50]} 12. Be3 $146 {[%emt 0:00:52]} ({Predecessor:} 12. d5 Ne7 13. Nd4 Nf5 14. Nxf5 Bxf5 {0-1 (59) Yousfi,Y (1621)-Lalaoui,F (1733) Tiaret 2014}) 12... Ne7 {[%emt 0:01:16]} 13. g4 {[%emt 0:00:06]} c6 {[%emt 0:00:51]} 14. Qd2 {[%emt 0:00:06]} Ng6 {[%emt 0:00:48]} 15. Rfe1 {[%emt 0:01:05]} d5 {[%emt 0:05:58]} 16. cxd5 {[%emt 0:00:59]} cxd5 {[%emt 0:00:50]} 17. Ne5 {[%emt 0:00:17]} Nxe5 {[%emt 0:01:40]} 18. dxe5 {[%emt 0:00:03]} Bxe3 {[%emt 0:00:02]} 19. Rxe3 {[%emt 0:00:18]} d4 {[%emt 0:00:17]} 20. Rd1 {[%emt 0:00:19]} Bxg4 $1 {[%emt 0:02:26]} 21. hxg4 {[%emt 0:01:39]} dxe3 {[%emt 0:00:02]} 22. Qxd8 {[%emt 0:00:05]} exf2+ {[%emt 0:00:06]} 23. Kf1 {[%emt 0:00:40]} Raxd8 {[%emt 0:00:07]} 24. Rxd8 {[%emt 0:00:03]} Rxd8 25. exf6 {[%emt 0:00:02]} Rd2 {[%emt 0:01:30]} 26. Bxb7 {[%emt 0:01:43]} Rxb2 $11 {[%emt 0:00:13]} 27. Bxa6 {[%emt 0:03:07]} Rc2 {[%emt 0:00:04]} 28. Ne4 {[%emt 0:00:17]} Rxa2 {[%emt 0:00:15]} 29. Be2 {[%emt 0:00:25]} gxf6 {[%emt 0:00:52]} 30. Nxf6+ {[%emt 0:00:03]} Kg7 {[%emt 0:00:00]} 31. Ne4 {[%emt 0:00:03]} Kg6 {[%emt 0:00:12]} 32. Bd3 {[%emt 0:00:13]} Ra3 {[%emt 0:00:26]} 33. Bc2 {[%emt 0:01:36]} Ra1+ {[%emt 0:00:11]} 34. Kxf2 {[%emt 0:00:08]} Ra2 35. Ng3+ {[%emt 0:00:37]} Rxc2+ {[%emt 0:00:04]} 36. Kf1 {[%emt 0:00:12]} Kg5 {[%emt 0:00:07]} 37. Nf5 {[%emt 0:00:04]} h5 {[%emt 0:00:10]} 0-1

[Event "3rd CNE NED-ch Women Rapid 2017"]
[Site "Amstelveen"]
[Date "2017.12.03"]
[Round "2"]
[White "Paulet, Iozefina"]
[Black "Ratsma, Rosa"]
[Result "0-1"]
[ECO "B52"]
[WhiteElo "2272"]
[BlackElo "2295"]
[Annotator "NA"]
[PlyCount "106"]
[EventDate "2017.??.??"]
[EventType "tourn"]
[EventCountry "NED"]
[SourceTitle "playchess.com"]
[Source "ChessBase"]
[SourceQuality "1"]
[TimeControl "900+10"]

1. e4 {[%emt 0:00:00]} c5 {[%emt 0:00:43]} 2. Nf3 {[%emt 0:00:00]} d6 {[%emt 0:00:07]} 3. Bb5+ {[%emt 0:00:00]} Bd7 {[%emt 0:00:03]} 4. Bxd7+ {[%emt 0:00:02]} Qxd7 {[%emt 0:00:02]} 5. O-O {[%emt 0:00:31]} Nf6 {[%emt 0:00:09]} 6. Qe2 {[%emt 0:00:13]} Nc6 {[%emt 0:00:16]} 7. c3 {[%emt 0:00:02]} e6 {[%emt 0:00:54]} 8. Rd1 {[%emt 0:00:05]} Be7 {[%emt 0:00:27]} 9. d4 {[%emt 0:00:03]} cxd4 {[%emt 0:00:10]} 10. cxd4 {[%emt 0:00:01]} d5 {[%emt 0:00:17]} 11. Nc3 {[%emt 0:00:39]} dxe4 {[%emt 0:00:35]} 12. Ne5 {[%emt 0:01:24]} Qc7 {[%emt 0:00:58]} 13. Bf4 {[%emt 0:00:55]} O-O {[%emt 0:03:37]} 14. Ng6 {[%emt 0:01:51]} e5 {[%emt 0:00:49]} 15. Nxe5 $16 {[%emt 0:00:10]} Qb6 {[%emt 0:01:31]} 16. Nc4 {[%emt 0:03:04]} Qa6 {[%emt 0:01:35]} 17. d5 {[%emt 0:00:03]} Nb4 {[%emt 0:01:22]} 18. d6 {[%emt 0:04:25]} Bd8 {[%emt 0:00:06]} 19. Nxe4 {[%emt 0:01:26]} Re8 {[%emt 0:01:21]} 20. Nxf6+ {[%emt 0:00:01]} Bxf6 {[%emt 0:00:02]} 21. Qf1 {[%emt 0:00:01]} b5 {[%emt 0:00:37]} 22. d7 {[%emt 0:00:08]} Red8 {[%emt 0:00:09]} 23. Ne5 {[%emt 0:01:31]} Qe6 {[%emt 0:01:10]} 24. Qxb5 {[%emt 0:00:37]} Rab8 {[%emt 0:00:04]} 25. Qa5 {[%emt 0:00:02]} a6 {[%emt 0:01:02]} 26. Rac1 {[%emt 0:00:34]} Rb5 {[%emt 0:00:25]} 27. Qxd8+ {[%emt 0:00:02]} Bxd8 {[%emt 0:00:02]} 28. Rc8 {[%emt 0:00:01]} Qe7 {[%emt 0:00:47]} 29. a3 {[%emt 0:00:35]} f6 {[%emt 0:00:09]} 30. Rdc1 {[%emt 0:00:51]} fxe5 {[%emt 0:00:10]} 31. Rxd8+ {[%emt 0:00:35]} Qxd8 {[%emt 0:00:01]} 32. Rc8 {[%emt 0:00:01]} Rb8 {[%emt 0:00:09]} 33. Bg5 {[%emt 0:00:09]} Qxc8 {[%emt 0:00:04]} 34. dxc8=Q+ {[%emt 0:00:02]} Rxc8 {[%emt 0:00:01]} 35. axb4 {[%emt 0:00:01]} Rc2 {[%emt 0:00:07]} 36. h4 {[%emt 0:00:05]} Rxb2 {[%emt 0:00:04]} 37. Be7 {[%emt 0:00:00]} Kf7 {[%emt 0:00:08]} 38. Bc5 {[%emt 0:00:01]} Ke6 {[%emt 0:00:06]} 39. Kf1 {[%emt 0:00:05]} Kd5 {[%emt 0:00:03]} 40. Bf8 {[%emt 0:00:03]} g6 {[%emt 0:00:06]} 41. Ke1 {[%emt 0:00:21]} Kc4 {[%emt 0:00:09]} 42. Bd6 {[%emt 0:00:02]} e4 {[%emt 0:00:09]} 43. g4 {[%emt 0:00:12]} Kd3 {[%emt 0:00:35]} 44. Kf1 {[%emt 0:00:05]} e3 {[%emt 0:00:04]} 45. fxe3 {[%emt 0:00:02]} Kxe3 {[%emt 0:00:02]} 46. h5 {[%emt 0:00:17]} Kf3 {[%emt 0:00:08]} 47. Kg1 {[%emt 0:00:11]} Kxg4 {[%emt 0:00:05]} 48. hxg6 {[%emt 0:00:01]} hxg6 {[%emt 0:00:02]} 49. Bc5 {[%emt 0:00:04]} g5 {[%emt 0:00:05]} 50. Be7 {[%emt 0:00:10]} Kg3 {[%emt 0:00:07]} 51. Bd6+ Kf3 52. Bc5 {[%emt 0:00:14]} g4 {[%emt 0:00:14]} 53. Bd6 {[%emt 0:00:32]} g3 {[%emt 0:00:04]} 0-1

[Event "3rd CNE NED-ch Women Rapid 2017"]
[Site "Amstelveen"]
[Date "2017.12.03"]
[Round "2"]
[White "De Mie, Mariska"]
[Black "Haast, Anne"]
[Result "0-1"]
[ECO "B47"]
[WhiteElo "2242"]
[BlackElo "2332"]
[Annotator "NA"]
[PlyCount "105"]
[EventDate "2017.??.??"]
[EventType "tourn"]
[EventCountry "NED"]
[SourceTitle "playchess.com"]
[Source "ChessBase"]
[SourceQuality "1"]
[TimeControl "900+10"]

1. e4 {[%emt 0:00:00]} c5 {[%emt 0:00:04]} 2. Nf3 {[%emt 0:00:00]} e6 {[%emt 0:00:01]} 3. d4 {[%emt 0:00:00]} cxd4 {[%emt 0:00:01]} 4. Nxd4 {[%emt 0:00:01]} Nc6 {[%emt 0:00:01]} 5. Nc3 {[%emt 0:00:16]} Qc7 {[%emt 0:00:01]} 6. f4 {[%emt 0:00:10] LiveBook: 1274 Games} a6 {[%emt 0:00:06]} 7. Be3 {[%emt 0:00:42]} Bb4 {[%emt 0:01:33]} 8. Nxc6 {[%emt 0:01:32] B48: Sicilian: Taimanov: 5 Nc3 Qc7 6 Be3 a6 without Be2} (8. Bd3 Nf6 9. Qd2 d6 10. a3 Bc5 11. Nb3 Bxe3 12. Qxe3 b5 13. O-O-O O-O 14. Rhe1 b4 15. axb4 Nxb4 {½-½ (46) Delgado Ramirez,N (2575)-Zambrana,O (2515) Bogota 2010}) 8... Qxc6 {[%emt 0:00:08]} 9. Qd4 {[%emt 0:00:06]} Bxc3+ $1 {[%emt 0:00:11]} 10. bxc3 {[%emt 0:00:02]} Nf6 {[%emt 0:00:10]} 11. Bd3 {[%emt 0:00:26]} b5 {[%emt 0:01:28]} 12. O-O {[%emt 0:02:41]} Bb7 {[%emt 0:00:06]} 13. Rae1 {[%emt 0:00:02]} Rc8 $146 {[%emt 0:00:31]} (13... Nxe4 $15 14. Bc1 (14. Qxg7 O-O-O $17) 14... Nc5) ({Predecessor:} 13... O-O 14. Bd2 d5 15. exd5 Qxd5 {½-½ (32) Muller,A (2115)-Flear,C (2232) Bescanon 1999}) 14. Bd2 {[%emt 0:00:11]} (14. a4 $5) 14... d6 {[%emt 0:00:24]} 15. Qf2 {[%emt 0:01:03]} Qc5 {[%emt 0:02:11]} 16. Be3 {[%emt 0:01:10]} Qc7 {[%emt 0:00:31]} 17. Bb6 {[%emt 0:00:20]} Qe7 {[%emt 0:00:08]} 18. Qh4 {[%emt 0:01:08]} Nd7 {[%emt 0:00:19]} 19. Qxe7+ {[%emt 0:01:47]} Kxe7 {[%emt 0:00:01]} 20. Bd4 {[%emt 0:00:01]} (20. Ba5 $1 $11) 20... e5 {[%emt 0:00:16]} 21. Be3 {[%emt 0:00:28]} Nc5 {[%emt 0:01:22]} 22. Bxc5 {[%emt 0:01:08]} Rxc5 {[%emt 0:00:05]} 23. a4 {[%emt 0:00:20]} bxa4 {[%emt 0:00:18]} 24. Rb1 {[%emt 0:00:03]} Bc6 {[%emt 0:00:33]} 25. fxe5 {[%emt 0:01:10]} dxe5 {[%emt 0:00:14]} 26. Rb6 {[%emt 0:00:44]} (26. c4 $17) 26... Rxc3 $19 {[%emt 0:01:00]} 27. Rxa6 {[%emt 0:00:16]} Rb8 {[%emt 0:01:02]} 28. Ra7+ {[%emt 0:00:34]} Rb7 {[%emt 0:00:03]} 29. Ra5 {[%emt 0:00:26]} f6 {[%emt 0:00:22]} 30. Ra1 {[%emt 0:00:57]} Bd7 {[%emt 0:01:19]} 31. Kf2 {[%emt 0:00:37]} Rcc7 {[%emt 0:00:02]} 32. Ke3 {[%emt 0:00:15]} Ra7 {[%emt 0:00:11]} 33. Rxa7 {[%emt 0:00:17]} Rxa7 {[%emt 0:00:01]} 34. Bc4 {[%emt 0:00:06]} Rc7 {[%emt 0:00:22]} 35. Kd3 {[%emt 0:00:10]} f5 {[%emt 0:01:18]} 36. Bd5 {[%emt 0:00:23]} fxe4+ {[%emt 0:01:44]} 37. Kxe4 {[%emt 0:00:02]} Rxc2 {[%emt 0:01:08]} 38. Kxe5 {[%emt 0:00:01]} Re2+ {[%emt 0:00:05]} 39. Kd4 {[%emt 0:00:03]} Kd6 {[%emt 0:00:03]} 40. Bf3 {[%emt 0:00:07]} Rb2 {[%emt 0:00:12]} 41. Kc3 {[%emt 0:00:18]} Rb8 {[%emt 0:00:22]} 42. Rd1+ {[%emt 0:00:18]} Ke7 {[%emt 0:00:10]} 43. Bd5 {[%emt 0:00:08]} Rb6 {[%emt 0:00:38]} 44. Bc4 {[%emt 0:00:26]} Be6 {[%emt 0:00:05]} 45. Re1 {[%emt 0:00:08]} Rc6 {[%emt 0:00:20]} 46. Rxe6+ {[%emt 0:00:25]} Rxe6 {[%emt 0:00:01]} 47. Bxe6 {[%emt 0:00:01]} Kxe6 {[%emt 0:00:01]} 48. Kb4 {[%emt 0:00:01]} Kd5 {[%emt 0:00:17]} 49. Kxa4 {[%emt 0:00:04]} Kd4 {[%emt 0:00:13]} 50. Kb4 {[%emt 0:01:18]} Ke3 {[%emt 0:00:03]} 51. Kc4 {[%emt 0:00:22]} Kf2 {[%emt 0:00:02]} 52. g3 {[%emt 0:00:08]} Kg2 {[%emt 0:00:07]} 53. Kd4 0-1

[Event "3rd CNE NED-ch Women Rapid 2017"]
[Site "Amstelveen"]
[Date "2017.12.03"]
[Round "2"]
[White "Keetman, Maaike"]
[Black "Kazarian, Anna-Maja"]
[Result "1-0"]
[ECO "C03"]
[WhiteElo "2203"]
[BlackElo "2162"]
[Annotator "NA"]
[PlyCount "85"]
[EventDate "2017.??.??"]
[EventType "tourn"]
[EventCountry "NED"]
[SourceTitle "playchess.com"]
[Source "ChessBase"]
[SourceQuality "1"]
[TimeControl "900+10"]

1. e4 {[%emt 0:00:28]} e6 {[%emt 0:00:02]} 2. d4 {[%emt 0:00:01]} d5 {[%emt 0:00:01]} 3. Nd2 {[%emt 0:00:02]} dxe4 {[%emt 0:00:07]} 4. Nxe4 {[%emt 0:00:01]} Nf6 {[%emt 0:00:04]} 5. Bd3 {[%emt 0:00:43]} Nbd7 {[%emt 0:00:29]} 6. Nf3 {[%emt 0:00:03]} Nxe4 {[%emt 0:00:52]} 7. Bxe4 {[%emt 0:00:02]} Nf6 {[%emt 0:00:01]} 8. Bg5 {[%emt 0:00:02]} Be7 {[%emt 0:00:10]} 9. Bxf6 {[%emt 0:00:02]} Bxf6 {[%emt 0:00:01]} 10. Qd3 {[%emt 0:00:02]} c5 {[%emt 0:00:29]} 11. Qb5+ {[%emt 0:01:29]} Bd7 {[%emt 0:00:01]} 12. Qxc5 {[%emt 0:00:05]} Rc8 {[%emt 0:00:13]} 13. Qa3 {[%emt 0:00:13]} Qb6 {[%emt 0:00:35]} 14. O-O {[%emt 0:07:26]} Be7 {[%emt 0:01:53]} 15. Qb3 {[%emt 0:00:14]} Qxb3 {[%emt 0:01:36]} 16. axb3 {[%emt 0:00:15]} Bb5 {[%emt 0:00:03]} 17. c4 {[%emt 0:00:05]} Ba6 {[%emt 0:00:01]} 18. Rfd1 {[%emt 0:01:36]} O-O {[%emt 0:00:18]} 19. Ne5 {[%emt 0:00:23]} Rfd8 {[%emt 0:02:06]} 20. d5 {[%emt 0:01:24]} f6 {[%emt 0:04:18]} 21. Nd3 {[%emt 0:00:34]} e5 {[%emt 0:00:48]} 22. Bf5 {[%emt 0:01:22]} Rc7 {[%emt 0:00:09]} 23. Ra4 {[%emt 0:00:24]} Bd6 {[%emt 0:01:04]} 24. Nb4 {[%emt 0:00:17]} Bxc4 {[%emt 0:01:22]} 25. bxc4 {[%emt 0:00:14]} Rxc4 {[%emt 0:00:01]} 26. Nc6 {[%emt 0:00:05]} Rxa4 {[%emt 0:00:01]} 27. Nxd8 {[%emt 0:00:01]} Rb4 {[%emt 0:00:01]} 28. Rd2 {[%emt 0:00:18]} a5 {[%emt 0:00:37]} 29. g3 {[%emt 0:00:07]} a4 {[%emt 0:00:31]} 30. Bc8 {[%emt 0:00:06]} Rd4 {[%emt 0:01:44]} 31. Rxd4 {[%emt 0:00:09]} exd4 32. Nxb7 {[%emt 0:00:03]} d3 {[%emt 0:00:02]} 33. Bg4 {[%emt 0:00:14]} Be5 {[%emt 0:00:31]} 34. d6 {[%emt 0:00:08]} Kf8 {[%emt 0:00:19]} 35. d7 {[%emt 0:00:04]} Bc7 {[%emt 0:00:01]} 36. d8=Q+ {[%emt 0:00:03]} Bxd8 {[%emt 0:00:00]} 37. Nxd8 {[%emt 0:00:02]} Ke7 {[%emt 0:00:04]} 38. Nc6+ {[%emt 0:00:02]} Kd6 {[%emt 0:00:04]} 39. Nb4 {[%emt 0:00:03]} d2 {[%emt 0:00:01]} 40. Kf1 {[%emt 0:00:28]} Kc5 {[%emt 0:00:05]} 41. Nc2 {[%emt 0:00:20]} f5 {[%emt 0:00:09]} 42. Bd1 {[%emt 0:00:05]} Kc4 {[%emt 0:00:09]} 43. Ne3+ {[%emt 0:00:07] Kd5} 1-0